[Event "17th Memorial Lezcano Montalvo 2025"]
[Site "Gran Canaria"]
[Date "2025.04.20"]
[Round "9.39"]
[White "Fernandez De La Hoz A., Carlos"]
[Black "Pace, Gabriele"]
[Result "0-1"]
[Annotator "NA"]
[ECO "C01"]
[WhiteElo "1687"]
[BlackElo "1895"]
[PlyCount "64"]
[EventDate "2025.04.13"]
[EventType "swiss"]
[EventCountry "ESP"]
[SourceTitle "playchess.com"]
[Source "ChessBase"]
[SourceQuality "1"]
[TimeControl "5400+30"]

1. e4 {[%emt 0:06:34]} e6 {[%emt 0:00:05]} 2. d4 {[%emt 0:01:12]} b6 {[%emt 0:00:02]} 3. Be3 {[%emt 0:03:07]} Bb7 {[%emt 0:00:13]} 4. Nd2 {[%emt 0:02:30]} d5 {[%emt 0:00:21]} 5. e5 {[%emt 0:01:25]} c5 {[%emt 0:00:28]} 6. c3 {[%emt 0:02:56]} Nc6 {[%emt 0:02:11]} 7. Bd3 {[%emt 0:03:50]} g6 {[%emt 0:07:40]} 8. Rc1 {[%emt 0:02:17]} cxd4 {[%emt 0:00:59]} 9. cxd4 {[%emt 0:00:14]} Nge7 {[%emt 0:00:16]} 10. Bg5 {[%emt 0:18:44]} Bg7 {[%emt 0:05:44]} 11. Bb5 {[%emt 0:06:03]} Qd7 {[%emt 0:00:28]} 12. Bxe7 {[%emt 0:47:38]} Kxe7 {[%emt 1:18:03]} 13. Qa4 {[%emt 0:00:00]} Rhc8 {[%emt 0:00:00]} 14. Qa3+ {[%emt 0:00:00]} Ke8 {[%emt 0:00:00]} 15. Ne2 {[%emt 0:00:00]} a6 {[%emt 0:00:00]} 16. Ba4 {[%emt 0:00:00]} b5 {[%emt 0:00:00]} 17. Bc2 {[%emt 0:00:00]} a5 {[%emt 0:00:00]} 18. O-O {[%emt 0:00:00]} b4 {[%emt 0:00:00]} 19. Qe3 {[%emt 0:00:00]} a4 {[%emt 0:00:00]} 20. Bd3 {[%emt 0:00:00]} Ba6 {[%emt 0:00:00]} 21. Bxa6 {[%emt 0:00:00]} Rxa6 {[%emt 0:00:00]} 22. Qh3 {[%emt 0:00:00]} h6 {[%emt 0:00:00]} 23. Nf3 {[%emt 0:00:00]} Na5 {[%emt 0:00:00]} 24. Nd2 {[%emt 0:03:57]} Rac6 {[%emt 0:00:00]} 25. Qd3 {[%emt 0:00:25]} Qb7 {[%emt 0:00:00]} 26. f4 {[%emt 0:01:14]} Bf8 {[%emt 0:00:00]} 27. a3 {[%emt 0:00:50]} b3 {[%emt 0:00:00]} 28. Nc3 {[%emt 0:00:27]} Nc4 {[%emt 0:00:00]} 29. Rb1 {[%emt 0:00:58]} Nxb2 {[%emt 0:00:00]} 30. Rxb2 {[%emt 0:00:31]} Rxc3 {[%emt 0:00:00]} 31. Qe2 {[%emt 0:00:16]} Rc2 {[%emt 0:00:00]} 32. Rfb1 {[%emt 0:00:50]} Bxa3 {[%emt 0:00:00]} 0-1

[Event "17th Memorial Lezcano Montalvo 2025"]
[Site "Gran Canaria"]
[Date "2025.04.20"]
[Round "9.40"]
[White "Schmitz, Manuela"]
[Black "Murashkin, Roman G"]
[Result "1-0"]
[Annotator "ChessBase"]
[ECO "D37"]
[WhiteElo "1815"]
[BlackElo "2129"]
[PlyCount "121"]
[EventDate "2025.04.13"]
[EventType "swiss"]
[EventCountry "ESP"]
[SourceTitle "playchess.com"]
[Source "ChessBase"]
[SourceQuality "1"]
[TimeControl "5400+30"]

1. d4 {[%emt 0:00:02]} d5 {[%emt 0:00:06]} 2. Nf3 {[%emt 0:00:06]} e6 {[%emt 0:00:05]} 3. c4 {[%emt 0:00:23]} a6 {[%emt 0:00:06]} 4. cxd5 {[%emt 0:01:18]} exd5 {[%emt 0:00:09]} 5. Nc3 {[%emt 0:01:04]} Nf6 {[%emt 0:00:07]} 6. Bg5 {[%emt 0:02:43]} c6 {[%emt 0:00:07]} 7. Qc2 {[%emt 0:00:58]} Be6 {[%emt 0:01:51]} 8. e3 {[%emt 0:01:23]} Nbd7 {[%emt 0:02:52]} 9. Rc1 {[%emt 0:04:00]} h6 {[%emt 0:01:45]} 10. Bh4 {[%emt 0:00:12]} Be7 {[%emt 0:00:58]} 11. Bd3 {[%emt 0:01:21]} Rc8 {[%emt 0:03:41]} 12. O-O {[%emt 0:00:56]} O-O {[%emt 0:03:53]} 13. Bf5 {[%emt 0:01:44]} Re8 {[%emt 0:09:52]} 14. h3 {[%emt 0:04:36]} Nf8 {[%emt 0:04:38]} 15. Ne5 {[%emt 0:06:52]} N6d7 {[%emt 0:04:44]} 16. Bxe7 {[%emt 0:05:22]} Qxe7 {[%emt 0:00:14]} 17. Nxd7 {[%emt 0:02:37]} Nxd7 {[%emt 0:01:15]} 18. Bd3 {[%emt 0:04:39]} Qg5 {[%emt 0:01:49]} 19. f4 {[%emt 0:01:00]} Qf6 {[%emt 0:04:20]} 20. f5 {[%emt 0:00:51]} Qg5 {[%emt 0:00:11]} 21. Qf2 {[%emt 0:02:48]} Qe7 {[%emt 0:03:51]} 22. fxe6 {[%emt 0:01:46]} Qxe6 {[%emt 0:01:14]} 23. Bf5 {[%emt 0:00:50]} Qe7 {[%emt 0:00:41]} 24. Bxd7 {[%emt 0:00:43]} Qxd7 {[%emt 0:00:09]} 25. Rce1 {[%emt 0:01:43]} b5 {[%emt 0:02:05]} 26. Qf5 {[%emt 0:01:47]} Qa7 {[%emt 0:03:14]} 27. Rf3 {[%emt 0:02:18]} a5 {[%emt 0:01:38]} 28. Ref1 {[%emt 0:01:06]} Rc7 {[%emt 0:00:50]} 29. Kh1 {[%emt 0:06:18]} a4 {[%emt 0:02:51]} 30. Rg3 {[%emt 0:03:06]} Kh8 {[%emt 0:04:14]} 31. Qg4 {[%emt 0:02:45]} Rg8 {[%emt 0:02:43]} 32. Ne2 {[%emt 0:03:11]} Re7 {[%emt 0:01:29]} 33. Qf5 {[%emt 0:01:24]} Qb8 {[%emt 0:03:26]} 34. Rff3 {[%emt 0:01:17]} Qd6 {[%emt 0:01:17]} 35. Nf4 {[%emt 0:02:09]} g6 {[%emt 0:03:04]} 36. Qd3 {[%emt 0:03:04]} Re4 {[%emt 0:02:31]} 37. Qf1 {[%emt 0:01:51]} Rg7 {[%emt 0:01:34]} 38. Nd3 {[%emt 0:01:01]} Re7 {[%emt 0:00:49]} 39. Ne5 {[%emt 0:01:00]} Qc7 {[%emt 0:29:37]} 40. Rf6 {[%emt 0:01:01]} Kg8 {[%emt 0:00:00]} 41. Rxc6 {[%emt 0:00:36]} Qb7 {[%emt 0:00:00]} 42. Rc5 {[%emt 0:01:36]} b4 {[%emt 0:00:00]} 43. Qb5 {[%emt 0:01:13]} a3 {[%emt 0:00:00]} 44. b3 {[%emt 0:02:31]} g5 {[%emt 0:00:00]} 45. Rxd5 {[%emt 0:01:17]} f6 {[%emt 0:00:00]} 46. Qxb7 {[%emt 0:00:53]} Rxb7 {[%emt 0:00:00]} 47. Nd3 {[%emt 0:00:12]} Rb6 {[%emt 0:00:00]} 48. Rf3 {[%emt 0:00:41]} Rgb7 {[%emt 0:00:00]} 49. Nc5 {[%emt 0:00:35]} Rc7 {[%emt 0:00:00]} 50. Rd8+ {[%emt 0:00:13]} Kg7 {[%emt 0:00:00]} 51. Rd7+ {[%emt 0:00:11]} Rxd7 {[%emt 0:00:00]} 52. Nxd7 {[%emt 0:00:05]} Rc6 {[%emt 0:00:00]} 53. Nc5 {[%emt 0:00:13]} Kg6 {[%emt 0:00:00]} 54. g4 {[%emt 0:00:29]} h5 {[%emt 0:00:00]} 55. Kg2 {[%emt 0:00:07]} h4 {[%emt 0:00:00]} 56. Rf5 {[%emt 0:00:22]} Kf7 {[%emt 0:00:00]} 57. Kf3 {[%emt 0:00:19]} Ke7 {[%emt 0:00:00]} 58. e4 {[%emt 0:00:38]} Rd6 {[%emt 0:00:00]} 59. Ke3 {[%emt 0:00:18]} Rb6 {[%emt 0:00:00]} 60. e5 {[%emt 0:00:29]} fxe5 {[%emt 0:00:00]} 61. Rxe5+ {[%emt 0:00:09]} 1-0

[Event "17th Memorial Lezcano Montalvo 2025"]
[Site "Gran Canaria"]
[Date "2025.04.20"]
[Round "9.44"]
[White "Santos Falcon, Jose"]
[Black "Camino Carrio, Nicanor"]
[Result "0-1"]
[Annotator "NA"]
[ECO "A24"]
[WhiteElo "1689"]
[BlackElo "2045"]
[PlyCount "96"]
[EventDate "2025.04.13"]
[EventType "swiss"]
[EventCountry "ESP"]
[SourceTitle "playchess.com"]
[Source "ChessBase"]
[SourceQuality "1"]
[TimeControl "5400+30"]

1. c4 {[%emt 0:00:14]} e5 {[%emt 0:00:45]} 2. Nc3 {[%emt 0:00:19]} Nf6 {[%emt 0:00:23]} 3. g3 {[%emt 0:00:18]} g6 {[%emt 0:00:30]} 4. Bg2 {[%emt 0:00:21]} Bg7 {[%emt 0:00:10]} 5. d3 {[%emt 0:01:02]} O-O {[%emt 0:00:12]} 6. Nf3 {[%emt 0:01:20]} Re8 {[%emt 0:00:36]} 7. Bg5 {[%emt 0:01:19]} h6 {[%emt 0:00:11]} 8. Bd2 {[%emt 1:29:37]} c6 {[%emt 1:31:43]} 9. e4 {[%emt 0:00:00]} d5 {[%emt 0:00:00]} 10. cxd5 {[%emt 0:00:00]} cxd5 {[%emt 0:00:00]} 11. O-O {[%emt 0:00:00]} Nc6 {[%emt 0:00:00]} 12. Re1 {[%emt 0:00:00]} Nb4 {[%emt 0:00:00]} 13. Bc1 {[%emt 0:00:00]} Bg4 {[%emt 0:00:00]} 14. h3 {[%emt 0:00:00]} dxe4 {[%emt 0:00:00]} 15. hxg4 {[%emt 0:00:00]} exf3 {[%emt 0:00:00]} 16. Bxf3 {[%emt 0:00:00]} Nxd3 {[%emt 0:00:00]} 17. Re3 {[%emt 0:00:00]} Nxc1 {[%emt 0:00:00]} 18. Rxc1 {[%emt 0:00:00]} Qb6 {[%emt 0:00:00]} 19. b3 {[%emt 0:00:00]} Rad8 {[%emt 0:00:00]} 20. Qe1 {[%emt 0:00:00]} Qe6 {[%emt 0:00:00]} 21. Ne4 {[%emt 0:00:00]} Nxg4 {[%emt 0:00:00]} 22. Nc5 {[%emt 0:00:00]} Qf5 {[%emt 0:00:00]} 23. Bxg4 {[%emt 0:00:00]} Qxg4 {[%emt 0:00:00]} 24. Nxb7 {[%emt 0:00:00]} Rd4 {[%emt 0:00:00]} 25. Qe2 {[%emt 0:00:00]} Qd7 {[%emt 0:00:00]} 26. Nc5 {[%emt 0:00:00]} Qd5 {[%emt 0:00:00]} 27. Nd3 {[%emt 0:00:00]} e4 {[%emt 0:00:00]} 28. Nf4 {[%emt 0:00:00]} Qd6 {[%emt 0:00:00]} 29. Rd3 {[%emt 0:00:00]} Rxd3 {[%emt 0:00:00]} 30. Nxd3 {[%emt 0:00:00]} e3 {[%emt 0:00:00]} 31. Kg2 {[%emt 0:00:00]} Rd8 {[%emt 0:00:00]} 32. Rd1 {[%emt 0:12:00]} exf2 {[%emt 0:12:00]} 33. Qxf2 {[%emt 0:00:00]} h5 {[%emt 0:00:00]} 34. b4 {[%emt 0:00:00]} Qc6+ {[%emt 0:00:00]} 35. Kh2 {[%emt 0:00:00]} Re8 {[%emt 0:00:00]} 36. Rf1 {[%emt 0:00:00]} Qc4 {[%emt 0:00:00]} 37. Qf3 {[%emt 0:00:00]} h4 {[%emt 0:00:00]} 38. g4 {[%emt 0:00:00]} Re4 {[%emt 0:00:00]} 39. Kh3 {[%emt 0:00:00]} Bh6 {[%emt 0:00:00]} 40. Re1 {[%emt 0:00:00]} Rxe1 {[%emt 0:00:00]} 41. Nxe1 {[%emt 0:00:00]} Qxb4 {[%emt 0:00:00]} 42. Nd3 {[%emt 0:00:00]} Qe7 {[%emt 0:00:00]} 43. Nf2 {[%emt 0:00:00]} Be3 {[%emt 0:00:00]} 44. Ne4 {[%emt 0:00:00]} Bd4 {[%emt 0:00:00]} 45. g5 {[%emt 0:00:00]} Qe6+ {[%emt 0:00:00]} 46. Kxh4 {[%emt 0:00:00]} Qxa2 {[%emt 0:00:00]} 47. Nf6+ {[%emt 0:00:00]} Bxf6 {[%emt 0:00:00]} 48. gxf6 {[%emt 0:00:00]} Qh2+ {[%emt 0:00:00]} 0-1

[Event "17th Memorial Lezcano Montalvo 2025"]
[Site "Gran Canaria"]
[Date "2025.04.20"]
[Round "9.45"]
[White "Ramirez Maillo, Juan Adonay"]
[Black "Macias Reyes, Jose Luis"]
[Result "1-0"]
[Annotator "NA"]
[ECO "B12"]
[WhiteElo "1956"]
[BlackElo "1674"]
[PlyCount "64"]
[EventDate "2025.04.13"]
[EventType "swiss"]
[EventCountry "ESP"]
[SourceTitle "playchess.com"]
[Source "ChessBase"]
[SourceQuality "1"]
[TimeControl "5400+30"]

1. e4 {[%emt 0:00:05]} c6 {[%emt 0:00:07]} 2. d4 {[%emt 0:00:13]} d5 {[%emt 0:00:05]} 3. e5 {[%emt 0:00:06]} c5 {[%emt 0:00:18]} 4. dxc5 {[%emt 0:00:06]} e6 {[%emt 0:00:20]} 5. c3 {[%emt 0:00:14]} Bxc5 {[%emt 0:01:13]} 6. Qg4 {[%emt 0:00:14]} Ne7 {[%emt 0:02:18]} 7. b4 {[%emt 0:00:21]} Bb6 {[%emt 0:00:15]} 8. Qxg7 {[%emt 0:00:10]} Rg8 {[%emt 0:00:11]} 9. Qxh7 {[%emt 0:00:07]} a5 {[%emt 0:00:19]} 10. Nf3 {[%emt 0:01:23]} Qc7 {[%emt 0:04:17]} 11. b5 {[%emt 0:06:23]} Nd7 {[%emt 0:02:56]} 12. Bf4 {[%emt 0:12:11]} Nf8 {[%emt 0:02:12]} 13. Qh5 {[%emt 0:03:57]} Nfg6 {[%emt 0:02:24]} 14. Bd2 {[%emt 0:13:17]} Bd7 {[%emt 0:06:00]} 15. Bd3 {[%emt 0:04:01]} O-O-O {[%emt 0:04:15]} 16. a4 {[%emt 0:04:35]} Kb8 {[%emt 0:09:00]} 17. O-O {[%emt 0:09:29]} Rdf8 {[%emt 0:06:52]} 18. Qg5 {[%emt 0:03:29]} Bc8 {[%emt 0:14:07]} 19. h4 {[%emt 0:01:12]} Nf5 {[%emt 0:03:55]} 20. Bxf5 {[%emt 0:04:36]} exf5 {[%emt 0:02:33]} 21. Qf6 {[%emt 0:03:14]} Qc4 {[%emt 0:03:22]} 22. Qxb6 {[%emt 0:12:19]} Nxh4 {[%emt 0:01:54]} 23. Qd6+ {[%emt 0:02:43]} Ka8 {[%emt 0:00:00]} 24. Nxh4 {[%emt 0:01:25]} Qxh4 {[%emt 0:00:24]} 25. Qxd5 {[%emt 0:02:10]} Rh8 {[%emt 0:02:28]} 26. f4 {[%emt 0:01:07]} Rfg8 {[%emt 0:06:12]} 27. b6 {[%emt 0:01:10]} Be6 {[%emt 0:26:03]} 28. Qxa5+ {[%emt 0:14:13]} Kb8 29. Qc5 {[%emt 0:00:30]} Qh2+ {[%emt 0:01:00]} 30. Kf2 Rxg2+ {[%emt 0:00:30]} 31. Ke1 {[%emt 0:01:00]} Qh5 {[%emt 0:00:30]} 32. Qe3 {[%emt 0:00:30]} Rgg8 {[%emt 0:00:30]} 1-0

[Event "17th Memorial Lezcano Montalvo 2025"]
[Site "Gran Canaria"]
[Date "2025.04.20"]
[Round "9.46"]
[White "Henriquez Garcia, David"]
[Black "Cabrera Martel, Isaac"]
[Result "1-0"]
[Annotator "NA"]
[ECO "C56"]
[WhiteElo "1869"]
[BlackElo "1655"]
[PlyCount "43"]
[EventDate "2025.04.13"]
[EventType "swiss"]
[EventCountry "ESP"]
[SourceTitle "playchess.com"]
[Source "ChessBase"]
[SourceQuality "1"]
[TimeControl "5400+30"]

1. e4 {[%emt 0:00:02]} e5 {[%emt 0:00:07]} 2. Nf3 {[%emt 0:00:10]} Nc6 {[%emt 0:00:06]} 3. d4 {[%emt 0:00:09]} exd4 {[%emt 0:00:08]} 4. Bc4 {[%emt 0:00:09]} Nf6 {[%emt 0:00:50]} 5. O-O {[%emt 0:01:09]} Nxe4 {[%emt 0:00:46]} 6. Re1 {[%emt 0:00:26]} d5 {[%emt 0:00:37]} 7. Bxd5 {[%emt 0:06:32]} Qxd5 {[%emt 0:00:17]} 8. Nc3 {[%emt 0:00:02]} Qh5 {[%emt 0:17:56]} 9. Nxe4 {[%emt 0:03:11]} Be6 {[%emt 0:11:02]} 10. Bg5 {[%emt 0:07:08]} Be7 {[%emt 0:03:01]} 11. Ng3 {[%emt 0:07:26]} Qg6 {[%emt 0:02:28]} 12. Bxe7 {[%emt 0:01:39]} Nxe7 {[%emt 0:07:58]} 13. Qxd4 {[%emt 0:06:25]} Nc6 {[%emt 0:02:14]} 14. Qc5 {[%emt 0:04:08]} O-O-O {[%emt 0:01:05]} 15. c4 {[%emt 0:06:34]} h5 {[%emt 0:09:11]} 16. h4 {[%emt 0:06:32]} Bg4 {[%emt 0:03:18]} 17. Ne5 {[%emt 0:02:16]} Nxe5 {[%emt 0:03:09]} 18. Rxe5 {[%emt 0:00:10]} Qd6 {[%emt 0:01:33]} 19. Qxd6 {[%emt 0:02:32]} Rxd6 {[%emt 0:03:34]} 20. f3 {[%emt 0:01:09]} Re6 {[%emt 0:02:04]} 21. Rg5 {[%emt 0:04:06]} Re3 {[%emt 0:03:23]} 22. Kf2 {[%emt 0:00:27]} 1-0

[Event "17th Memorial Lezcano Montalvo 2025"]
[Site "Gran Canaria"]
[Date "2025.04.20"]
[Round "9.47"]
[White "Oramas Medina, Miguel"]
[Black "Morell Rojas, Samuel"]
[Result "1-0"]
[Annotator "NA"]
[ECO "B15"]
[WhiteElo "1796"]
[BlackElo "1652"]
[PlyCount "88"]
[EventDate "2025.04.13"]
[EventType "swiss"]
[EventCountry "ESP"]
[SourceTitle "playchess.com"]
[Source "ChessBase"]
[SourceQuality "1"]
[TimeControl "5400+30"]

1. e4 {[%emt 0:00:03]} c6 {[%emt 1:31:00]} 2. d4 {[%emt 0:00:12]} d5 {[%emt 0:00:00]} 3. Nc3 {[%emt 0:00:06]} dxe4 {[%emt 0:00:00]} 4. Nxe4 {[%emt 0:00:12]} Nf6 {[%emt 0:00:00]} 5. Nxf6+ {[%emt 0:00:07]} exf6 {[%emt 0:00:00]} 6. c3 {[%emt 0:00:08]} Bd6 {[%emt 0:00:00]} 7. Bd3 {[%emt 0:00:14]} O-O {[%emt 0:00:00]} 8. Qc2 {[%emt 0:00:04]} Re8+ {[%emt 0:00:00]} 9. Ne2 {[%emt 0:00:05]} h5 {[%emt 0:00:00]} 10. Be3 {[%emt 0:00:06]} Na6 {[%emt 0:00:00]} 11. O-O-O {[%emt 0:02:19]} Nc7 {[%emt 0:00:00]} 12. c4 {[%emt 0:03:06]} Be6 {[%emt 0:00:00]} 13. Kb1 {[%emt 0:02:25]} b5 {[%emt 0:00:00]} 14. c5 {[%emt 1:28:23]} Bf8 {[%emt 0:00:00]} 15. Nf4 {[%emt 0:00:00]} Bg4 {[%emt 0:00:00]} 16. Be2 {[%emt 0:00:00]} Nd5 {[%emt 0:00:00]} 17. Nxd5 {[%emt 0:00:00]} Qxd5 {[%emt 0:00:00]} 18. Bxg4 {[%emt 0:00:00]} hxg4 {[%emt 0:00:00]} 19. g3 {[%emt 0:00:00]} Qe4 {[%emt 0:00:00]} 20. h3 {[%emt 0:00:00]} Qxc2+ {[%emt 0:00:00]} 21. Kxc2 {[%emt 0:00:00]} f5 {[%emt 0:00:00]} 22. hxg4 {[%emt 0:00:00]} fxg4 {[%emt 0:00:00]} 23. d5 {[%emt 0:00:00]} cxd5 {[%emt 0:00:00]} 24. Rxd5 {[%emt 0:00:00]} f6 {[%emt 0:00:00]} 25. Rhd1 {[%emt 0:00:00]} Rac8 {[%emt 0:00:00]} 26. b4 {[%emt 0:00:00]} Re7 {[%emt 0:00:00]} 27. R1d4 {[%emt 0:00:00]} Rec7 {[%emt 0:00:00]} 28. Rxg4 {[%emt 0:00:00]} a5 {[%emt 0:00:00]} 29. a3 {[%emt 0:00:00]} axb4 {[%emt 0:00:00]} 30. axb4 {[%emt 0:00:00]} Ra8 {[%emt 0:00:00]} 31. Bd4 {[%emt 0:00:00]} Kf7 {[%emt 0:00:00]} 32. Bb2 {[%emt 0:00:00]} g5 {[%emt 0:00:00]} 33. Rf5 {[%emt 0:00:00]} Bg7 {[%emt 0:00:00]} 34. Rd4 {[%emt 0:00:00]} Re7 {[%emt 0:00:00]} 35. f3 {[%emt 0:00:00]} Kg6 {[%emt 0:00:00]} 36. g4 {[%emt 0:00:00]} Re2+ {[%emt 0:00:00]} 37. Rd2 {[%emt 0:00:00]} Re3 {[%emt 0:00:00]} 38. Rd3 {[%emt 0:00:00]} Re2+ {[%emt 0:00:00]} 39. Kb3 {[%emt 0:00:00]} Rh8 40. Rfd5 {[%emt 0:13:00]} Rhh2 {[%emt 0:00:00]} 41. Bc3 {[%emt 0:00:00]} f5 42. gxf5+ {[%emt 0:01:00]} Kh6 {[%emt 0:00:00]} 43. Rd7 {[%emt 0:00:30]} Kh7 {[%emt 0:00:00]} 44. Bb2 {[%emt 0:00:00]} Rxb2+ {[%emt 0:00:00]} 1-0

[Event "17th Memorial Lezcano Montalvo 2025"]
[Site "Gran Canaria"]
[Date "2025.04.20"]
[Round "9.48"]
[White "Hernandez De Armas, Leonardo"]
[Black "Perez Betancor, Jose Luis"]
[Result "0-1"]
[Annotator "NA"]
[ECO "C92"]
[WhiteElo "1645"]
[BlackElo "1782"]
[PlyCount "76"]
[EventDate "2025.04.13"]
[EventType "swiss"]
[EventCountry "ESP"]
[SourceTitle "playchess.com"]
[Source "ChessBase"]
[SourceQuality "1"]
[TimeControl "5400+30"]

1. e4 {[%emt 0:00:02]} e5 {[%emt 0:02:16]} 2. Nf3 {[%emt 0:00:08]} Nc6 {[%emt 0:00:12]} 3. Bb5 {[%emt 0:00:16]} a6 {[%emt 0:00:22]} 4. Ba4 {[%emt 0:00:07]} Nf6 {[%emt 0:00:22]} 5. O-O {[%emt 0:00:31]} d6 {[%emt 0:00:58]} 6. Re1 {[%emt 0:00:37]} Be7 {[%emt 0:00:33]} 7. c3 {[%emt 0:00:17]} O-O {[%emt 0:00:42]} 8. h3 {[%emt 0:00:08]} b5 {[%emt 0:00:59]} 9. Bb3 {[%emt 0:00:21]} Nb8 {[%emt 0:00:39]} 10. d4 {[%emt 0:01:09]} Nbd7 {[%emt 0:00:33]} 11. Nbd2 {[%emt 0:02:27]} Bb7 {[%emt 0:00:42]} 12. d5 {[%emt 0:01:48]} Re8 {[%emt 0:03:48]} 13. Nf1 {[%emt 0:01:14]} Bf8 {[%emt 0:00:37]} 14. Ng3 {[%emt 0:00:58]} g6 {[%emt 0:00:11]} 15. Nh2 {[%emt 0:01:21]} Nc5 {[%emt 0:07:00]} 16. Bc2 {[%emt 0:00:19]} c6 {[%emt 0:03:28]} 17. Bg5 {[%emt 0:05:40]} h6 {[%emt 0:01:15]} 18. Bxf6 {[%emt 0:02:05]} Qxf6 {[%emt 0:00:12]} 19. Qd2 {[%emt 0:05:34]} Rad8 {[%emt 0:04:52]} 20. Rf1 {[%emt 0:03:34]} cxd5 {[%emt 0:06:30]} 21. exd5 {[%emt 0:01:53]} Qg7 {[%emt 0:01:47]} 22. f4 {[%emt 0:03:44]} f5 {[%emt 0:03:47]} 23. Nxf5 {[%emt 0:04:03]} gxf5 {[%emt 0:00:13]} 24. Bxf5 {[%emt 0:00:09]} Qf7 {[%emt 0:08:25]} 25. Be6 {[%emt 0:01:07]} Nxe6 {[%emt 0:00:13]} 26. dxe6 {[%emt 0:00:10]} Qxe6 {[%emt 0:00:48]} 27. fxe5 {[%emt 0:00:35]} dxe5 {[%emt 0:01:19]} 28. Qf2 {[%emt 0:02:48]} Bg7 {[%emt 0:02:09]} 29. Ng4 {[%emt 0:01:09]} Rf8 {[%emt 0:04:50]} 30. Qg3 {[%emt 0:03:23]} Kh8 {[%emt 0:00:28]} 31. Rae1 {[%emt 0:00:15]} e4 {[%emt 0:02:23]} 32. Qe3 {[%emt 0:00:40]} Ba8 {[%emt 0:01:16]} 33. Rf4 {[%emt 0:00:51]} Rxf4 {[%emt 0:01:14]} 34. Qxf4 {[%emt 0:00:08]} Rf8 {[%emt 0:01:00]} 35. Qe3 {[%emt 0:00:27]} b4 {[%emt 0:04:06]} 36. Nf2 {[%emt 0:00:26]} bxc3 {[%emt 0:00:37]} 37. bxc3 {[%emt 0:00:29]} Re8 {[%emt 0:00:25]} 38. a4 {[%emt 0:01:52]} Qc6 {[%emt 0:38:19]} 0-1

[Event "17th Memorial Lezcano Montalvo 2025"]
[Site "Gran Canaria"]
[Date "2025.04.20"]
[Round "9.51"]
[White "Creo Abeijon, Diego"]
[Black "Garcia Almeida, Valeria"]
[Result "1/2-1/2"]
[Annotator "NA RC"]
[ECO "B78"]
[WhiteElo "1729"]
[BlackElo "1582"]
[PlyCount "108"]
[EventDate "2025.04.13"]
[EventType "swiss"]
[EventCountry "ESP"]
[SourceTitle "playchess.com"]
[Source "ChessBase"]
[SourceQuality "1"]
[TimeControl "5400+30"]

1. e4 {[%emt 0:00:05]} c5 {[%emt 0:02:29]} 2. Nf3 {[%emt 0:00:07]} Nc6 {[%emt 0:00:42]} 3. d4 {[%emt 0:00:10]} cxd4 {[%emt 0:01:00]} 4. Nxd4 {[%emt 0:00:12]} g6 {[%emt 0:00:56]} 5. Be3 {[%emt 0:00:50]} Nf6 {[%emt 0:03:01]} 6. Nc3 {[%emt 0:00:54]} Bg7 {[%emt 0:01:24]} 7. f3 {[%emt 0:06:51]} O-O {[%emt 0:01:04]} 8. Bc4 {[%emt 0:02:06]} d6 {[%emt 0:02:22]} 9. Qd2 {[%emt 0:02:07]} Bd7 {[%emt 0:05:13]} 10. O-O-O {[%emt 0:03:49]} Nxd4 {[%emt 0:03:39]} 11. Bxd4 {[%emt 0:00:26]} Qc7 {[%emt 0:10:28]} 12. Bb3 {[%emt 0:04:04]} Rfc8 {[%emt 0:06:21]} 13. g4 {[%emt 0:05:18]} b5 {[%emt 0:02:51]} 14. h4 {[%emt 0:09:37]} b4 {[%emt 0:09:13]} 15. Nd5 {[%emt 0:17:16]} Nxd5 {[%emt 0:01:12]} 16. Bxg7 {[%emt 0:01:25]} Kxg7 {[%emt 0:02:13]} 17. Bxd5 {[%emt 0:05:16]} Bc6 {[%emt 0:12:55]} 18. h5 {[%emt 0:02:07]} Bxd5 {[%emt 0:00:42]} 19. hxg6 {[%emt 0:02:17]} fxg6 {[%emt 0:03:08]} 20. Qh6+ {[%emt 0:00:52]} Kf7 {[%emt 0:00:43]} 21. Qxh7+ {[%emt 0:01:00]} Ke8 {[%emt 0:00:49]} 22. Qxg6+ {[%emt 0:02:19]} Bf7 {[%emt 0:01:06]} 23. Rh8+ {[%emt 0:00:26]} Kd7 {[%emt 0:00:11]} 24. Qf5+ {[%emt 0:01:22]} Be6 {[%emt 0:01:36]} 25. Qb5+ {[%emt 0:06:07]} Qc6 {[%emt 0:01:36]} 26. Qxc6+ {[%emt 0:00:24]} Kxc6 {[%emt 0:00:06]} 27. Rh6 {[%emt 0:03:24]} Bc4 {[%emt 0:03:44]} 28. Rd2 {[%emt 0:01:22]} Rh8 {[%emt 0:01:34]} 29. g5 {[%emt 0:01:00]} Rxh6 {[%emt 0:07:16]} 30. gxh6 {[%emt 0:00:09]} Rh8 {[%emt 0:00:04]} 31. Rh2 {[%emt 0:00:11]} Kd7 {[%emt 0:00:50]} 32. Kd2 {[%emt 0:03:29]} Ke6 {[%emt 0:04:03]} 33. b3 {[%emt 0:00:41]} Bb5 {[%emt 0:00:20]} 34. Ke3 {[%emt 0:05:57]} Kf6 {[%emt 0:00:52]} 35. Rh5 {[%emt 0:03:41]} Bd7 {[%emt 0:00:39]} 36. Ra5 {[%emt 0:01:34]} Ra8 {[%emt 0:01:50]} 37. Ra6 {[%emt 0:00:37]} Bb5 {[%emt 0:00:53]} 38. Ra5 {[%emt 0:01:51]} a6 {[%emt 0:01:22]} 39. a4 {[%emt 0:01:07]} Bd7 {[%emt 0:05:54]} 40. f4 {[%emt 0:00:52]} Kg6 {[%emt 0:00:58]} 41. e5 {[%emt 0:01:17]} Bf5 {[%emt 0:01:26]} 42. exd6 {[%emt 0:00:34]} exd6 {[%emt 0:00:07]} 43. h7 {[%emt 0:00:53]} Bxc2 {[%emt 0:00:54]} 44. h8=Q {[%emt 0:00:35]} Rxh8 {[%emt 0:00:05]} 45. Rxa6 {[%emt 0:00:24]} Rh3+ {[%emt 0:02:25]} 46. Kd2 {[%emt 0:02:08]} Bxb3 {[%emt 0:00:30]} 47. Rxd6+ {[%emt 0:00:38]} Kf5 {[%emt 0:00:05]} 48. a5 {[%emt 0:00:58]} Rh1 {[%emt 0:00:42]} 49. Rb6 {[%emt 0:01:27]} Rd1+ {[%emt 0:00:51]} 50. Ke3 {[%emt 0:01:08]} Re1+ {[%emt 0:00:13]} 51. Kd2 {[%emt 0:01:08]} Rd1+ {[%emt 0:00:41]} 52. Ke2 {[%emt 0:00:50]} Ra1 {[%emt 0:00:31]} 53. Rb5+ {[%emt 0:00:43]} Kxf4 {[%emt 0:00:31]} 54. Rxb4+ {[%emt 0:00:10]} Ke5 {[%emt 0:00:05]} 1/2-1/2